bitfinex/quotes_SOLUSD_20241103
["timestamp","ask_amount","ask_price","bid_price","bid_amount"]
[1730660684977,9.91536149,159.18,159.15,0.1]
[1730660687459,9.91536149,159.17,159.15,0.1]
[1730660687660,9.91536149,159.18,159.15,6.3833]
[1730660687860,9.91536149,159.17,159.15,6.3833]
[1730660688054,9.91536149,159.2,159.17,0.1]
[1730660688556,9.91536149,159.22,159.17,0.1]
[1730660688753,9.91536149,159.22,159.21,0.1]
[1730660689976,9.91536149,159.24,159.21,6.3808]
[1730660690159,9.91536149,159.24,159.22,0.1]
[1730660692182,9.91536149,159.23,159.22,0.1]
[1730660692477,9.91536149,159.23,159.21,0.1]
[1730660692679,9.91536149,159.22,159.21,0.1]
[1730660692896,9.91536149,159.22,159.2,0.1]
[1730660693187,9.91536149,159.22,159.21,0.1]
[1730660693373,9.91536149,159.23,159.2,22.0848]
[1730660693684,6.40459,159.26,159.21,0.1]
[1730660693685,9.91536149,159.22,159.21,0.1]
[1730660695474,9.91536149,159.23,159.21,0.1]
[1730660696188,9.91536149,159.24,159.21,0.1]
[1730660696670,9.91536149,159.26,159.23,0.1]
[1730660697884,9.91536149,159.26,159.24,0.1]
[1730660699196,9.91536149,159.25,159.24,0.1]
[1730660699883,9.91536149,159.26,159.24,0.1]
[1730660702891,9.91536149,159.28,159.25,0.1]
[1730660703082,9.91536149,159.28,159.26,0.1]
[1730660703978,9.91536149,159.27,159.23,0.1]
[1730660704298,9.91536149,159.25,159.24,0.1]
[1730660704671,9.91536149,159.26,159.24,0.1]
[1730660706400,9.91536149,159.29,159.26,0.1]
[1730660706583,9.91536149,159.29,159.28,0.1]
[1730660708094,9.91536149,159.29,159.27,0.1]
[1730660708499,9.91536149,159.28,159.27,0.1]
[1730660708682,9.91536149,159.28,159.26,0.1]
[1730660708883,9.91536149,159.27,159.23,0.1]
[1730660709113,9.91536149,159.24,159.21,0.1]
[1730660709405,70.0,159.27,159.21,0.1]
[1730660709612,15.51898074,159.22,159.21,0.1]
[1730660710283,15.51898074,159.22,159.18,21.9871]
[1730660710284,15.51898074,159.22,159.2,0.1]
[1730660710603,6.2802,159.23,159.21,0.1]
[1730660712106,15.51898074,159.22,159.21,0.1]
[1730660712293,15.51898074,159.22,159.2,0.1]
[1730660712497,15.51898074,159.21,159.2,0.1]
[1730660715020,21.80028074,159.21,159.16,0.1]
[1730660715308,15.51898074,159.17,159.15,0.1]
[1730660715517,15.51898074,159.16,159.15,0.1]
[1730660716314,15.51898074,159.17,159.16,0.1]
[1730660716616,70.0,159.22,159.16,0.1]
[1730660716617,15.51898074,159.18,159.16,0.1]
[1730660716826,15.51898074,159.18,159.17,0.1]
[1730660717893,15.51898074,159.18,159.14,15.8086]
[1730660718097,6.2816,159.2,159.15,0.1]
[1730660718098,15.51898074,159.16,159.15,0.1]
[1730660718307,15.51898074,159.17,159.15,0.1]
[1730660718499,15.51898074,159.16,159.15,0.1]
[1730660719310,15.51898074,159.17,159.16,0.1]
[1730660720191,15.51898074,159.17,159.15,0.1]
[1730660720392,15.51898074,159.16,159.15,0.1]
[1730660720792,15.51898074,159.16,159.13,0.1]
[1730660721097,15.51898074,159.14,159.12,0.1]
[1730660721297,15.51898074,159.13,159.11,0.1]
[1730660721719,15.51898074,159.12,159.09,0.1]
[1730660722017,15.51898074,159.1,159.09,0.1]
[1730660722395,15.51898074,159.1,159.07,0.3099733]
[1730660722593,6.2855,159.1,159.09,0.1]
[1730660723893,6.2855,159.1,159.07,0.3099733]
[1730660723894,6.41099,159.1,159.07,0.3099733]
[1730660724204,15.51898074,159.08,159.07,0.4099733]
[1730660724397,15.64447074,159.08,159.07,0.3099733]
[1730660724600,42.18155074,159.08,159.07,0.3099733]
[1730660724800,15.51898074,159.08,159.07,0.3099733]
[1730660726020,22.05606074,159.08,159.07,0.3099733]
[1730660726232,42.18155074,159.08,159.07,0.3099733]
[1730660727297,135.95843474,159.08,159.07,0.3099733]
[1730660730214,42.18155074,159.08,159.07,0.3099733]
[1730660730525,15.51898074,159.11,159.08,0.1]
[1730660730833,15.51898074,159.13,159.11,0.1]
[1730660731422,15.51898074,159.12,159.11,0.1]
[1730660731722,15.51898074,159.13,159.11,0.1]
[1730660732424,15.51898074,159.15,159.13,0.1]
[1730660732724,15.51898074,159.14,159.13,0.1]
[1730660735309,15.51898074,159.15,159.13,0.1]
[1730660737099,15.51898074,159.14,159.12,0.1]
[1730660737303,15.51898074,159.13,159.12,0.1]
[1730660737526,15.51898074,159.14,159.12,0.1]
[1730660739128,15.51898074,159.15,159.13,0.1]
[1730660741740,15.51898074,159.15,159.12,0.1]
[1730660742922,15.51898074,159.15,159.11,6.3847]
[1730660743130,15.51898074,159.15,159.12,0.1]
[1730660743300,15.51898074,159.14,159.12,0.1]
[1730660744605,15.51898074,159.15,159.12,0.1]
[1730660745627,15.51898074,159.18,159.14,0.1]
[1730660745932,6.2814,159.2,159.11,59.15878074]
[1730660745933,15.51898074,159.19,159.15,0.1]
[1730660746219,15.51898074,159.16,159.13,0.1]
[1730660746423,15.51898074,159.16,159.14,0.1]
[1730660748127,6.2821,159.18,159.12,0.1]
[1730660748128,15.51898074,159.15,159.12,0.1]
[1730660748331,15.51898074,159.14,159.11,22.0971]
[1730660748636,15.51898074,159.14,159.12,0.1]
[1730660748806,15.51898074,159.15,159.12,0.1]
[1730660749011,15.51898074,159.16,159.13,0.1]
[1730660749219,15.51898074,159.16,159.11,22.0973]
[1730660749536,15.51898074,159.16,159.13,0.1]
[1730660750031,21.80208074,159.16,159.13,0.1]
[1730660751038,15.51898074,159.15,159.12,0.1]
[1730660751216,15.51898074,159.15,159.13,0.1]
[1730660751534,15.51898074,159.15,159.12,0.1]
[1730660751710,15.51898074,159.14,159.12,0.1]
[1730660751905,15.51898074,159.14,159.13,0.1]
[1730660752509,15.51898074,159.15,159.13,0.1]
[1730660752916,15.51898074,159.17,159.13,6.3841]
[1730660753125,15.51898074,159.16,159.13,6.3841]
[1730660753432,6.40759,159.18,159.13,0.1]
[1730660753433,9.93851614,159.15,159.13,0.1]
[1730660754237,9.93851614,159.14,159.13,0.1]
[1730660756419,16.22261614,159.14,159.11,0.1]
[1730660756620,9.93851614,159.14,159.12,0.1]
[1730660757832,9.93851614,159.14,159.13,0.1]
[1730660758413,9.93851614,159.14,159.12,0.1]
[1730660760150,9.93851614,159.14,159.13,0.1]
[1730660760320,9.93851614,159.16,159.15,0.1]
[1730660760634,9.93851614,159.17,159.15,0.1]
[1730660762340,9.93851614,159.18,159.15,6.3833]
[1730660762519,9.93851614,159.18,159.17,0.1]
[1730660762716,9.93851614,159.19,159.17,0.1]
[1730660762916,9.93851614,159.22,159.19,0.1]
[1730660763546,9.93851614,159.2,159.19,0.1]
[1730660764223,9.93851614,159.21,159.2,0.1]
[1730660765543,9.93851614,159.21,159.19,0.1]
[1730660765722,9.93851614,159.2,159.19,0.1]
[1730660766042,9.93851614,159.2,159.18,0.1]
[1730660767619,9.93851614,159.2,159.19,0.1]
[1730660767930,9.93851614,159.21,159.19,0.1]
[1730660768437,9.93851614,159.21,159.2,0.1]
[1730660768937,9.93851614,159.21,159.17,0.1]
[1730660769118,9.93851614,159.21,159.15,21.9916]
[1730660769119,0.12549,159.23,159.18,0.1]
[1730660769326,9.93851614,159.19,159.18,0.1]
[1730660770741,9.93851614,159.21,159.2,0.1]
[1730660771124,9.93851614,159.23,159.21,0.1]
[1730660771529,9.93851614,159.23,159.22,0.1]
[1730660772950,55.44806456,159.3,159.24,0.1]
[1730660772951,9.93851614,159.26,159.24,0.1]
[1730660773270,9.93851614,159.28,159.27,0.1]
[1730660775046,16.21671614,159.28,159.25,0.1]
[1730660775247,9.93851614,159.26,159.25,0.1]
[1730660776241,9.93851614,159.27,159.25,0.1]
[1730660776434,70.0,159.3,159.28,0.1]
[1730660776435,9.93851614,159.3,159.28,0.1]
[1730660777246,9.93851614,159.31,159.3,0.1]
[1730660779029,70.4099733,159.35,159.31,0.1]
[1730660779030,9.93851614,159.33,159.31,0.1]
[1730660779244,9.93851614,159.33,159.32,0.1]
[1730660780140,9.93851614,159.33,159.31,0.1]
[1730660780439,9.93851614,159.32,159.31,0.1]
[1730660783255,9.93851614,159.34,159.32,0.1]
[1730660783965,9.93851614,159.34,159.27,41.56351614]
[1730660783966,10.24848944,159.35,159.33,0.1]
[1730660784461,0.3099733,159.35,159.34,0.1]
[1730660784944,0.3099733,159.35,159.34,15.214]
[1730660785649,0.3099733,159.35,159.34,21.4898]
[1730660788347,0.3099733,159.35,159.34,31.42831614]
[1730660788727,0.3099733,159.35,159.34,21.4898]
[1730660790240,0.3099733,159.35,159.34,6.3758]
[1730660791132,10.24848944,159.35,159.34,0.1]
[1730660791541,0.3099733,159.35,159.34,0.1]
[1730660791748,0.3099733,159.35,159.34,6.3758]
[1730660792054,10.24848944,159.35,159.34,0.1]
[1730660794759,0.3099733,159.35,159.34,6.3758]
[1730660795142,10.24848944,159.35,159.34,0.1]
[1730660795462,0.3099733,159.35,159.34,0.1]
[1730660795643,0.3099733,159.35,159.34,6.3758]
[1730660795847,10.24848944,159.35,159.34,0.1]
[1730660797052,10.24848944,159.35,159.32,21.9682]
[1730660797053,10.24848944,159.35,159.33,0.1]
[1730660797251,9.93851614,159.34,159.33,0.1]
[1730660800563,0.3099733,159.35,159.34,0.1]
[1730660801847,0.3099733,159.35,159.34,6.3758]
[1730660802740,0.3099733,159.35,159.34,16.31431614]
[1730660804336,0.3099733,159.35,159.34,6.3758]
[1730660804539,0.3099733,159.35,159.34,0.1]
[1730660804844,0.3099733,159.35,159.34,6.3758]
[1730660805045,0.3099733,159.35,159.34,16.31431614]
[1730660809071,0.3099733,159.35,159.34,40.31669014]
[1730660810063,0.3099733,159.35,159.34,40.66767014]
[1730660810446,10.24848944,159.43,159.42,0.1]
[1730660810447,0.3099733,159.43,159.42,0.1]
[1730660811453,10.24848944,159.43,159.42,0.1]
[1730660811661,16.52078944,159.43,159.42,0.1]
[1730660811847,10.24848944,159.43,159.42,0.1]
[1730660812468,10.24848944,159.43,159.41,0.1]
[1730660812671,0.3099733,159.43,159.42,0.1]
[1730660812973,10.24848944,159.43,159.42,0.1]
[1730660813474,10.24848944,159.43,159.4,0.1]
[1730660813657,6.5822733,159.43,159.42,0.1]
[1730660813853,16.52078944,159.43,159.42,0.1]
[1730660816272,10.24848944,159.43,159.42,0.1]
[1730660816482,6.89947,159.42,159.38,0.1]
[1730660816672,6.89947,159.42,159.4,0.1]
[1730660816879,10.06400614,159.41,159.4,0.1]
[1730660817571,0.12549,159.4,159.38,0.1]
[1730660817775,9.93851614,159.39,159.37,0.1]
[1730660817974,9.93851614,159.38,159.37,0.1]
[1730660821372,6.2733,159.41,159.37,0.1]
[1730660821373,9.93851614,159.39,159.38,0.1]
[1730660823479,9.93851614,159.39,159.38,6.3743]
[1730660823687,9.93851614,159.4,159.39,0.1]
[1730660824196,9.93851614,159.42,159.41,0.1]
[1730660824580,16.21121614,159.42,159.41,0.1]
[1730660824786,16.21121614,159.42,159.37,0.1]
[1730660824994,6.2727,159.42,159.39,0.1]
[1730660825293,0.12549,159.41,159.39,0.1]
[1730660825479,9.93851614,159.4,159.39,0.1]
[1730660825674,9.93851614,159.41,159.39,6.3739]
[1730660825879,9.93851614,159.41,159.4,0.1]
[1730660826584,10.24848944,159.43,159.41,0.1]
[1730660826792,10.24848944,159.43,159.42,0.1]
[1730660828492,10.24848944,159.43,159.41,0.1]
[1730660828685,0.3099733,159.43,159.42,0.1]
[1730660828872,10.24848944,159.43,159.42,0.1]
[1730660829570,0.3099733,159.43,159.42,0.1]
[1730660830980,0.3099733,159.43,159.42,10.03851614]
[1730660831192,0.3099733,159.43,159.42,33.94089014]
[1730660831377,0.3099733,159.43,159.42,41.46761953]
[1730660831580,0.3099733,159.43,159.42,40.21359014]
[1730660831983,0.3099733,159.43,159.42,6.3727]
[1730660832776,0.3099733,159.43,159.42,40.21359014]
[1730660834096,0.3099733,159.43,159.42,6.3727]
[1730660834297,0.3099733,159.43,159.42,40.43908014]
[1730660834479,6.55588078,159.49,159.48,0.1]
[1730660834683,6.55588078,159.49,159.48,10.03851614]
[1730660834890,0.3099733,159.51,159.5,0.1]
[1730660835199,0.3099733,159.51,159.5,25.05081614]
[1730660835384,0.3099733,159.51,159.5,31.32031614]
[1730660835576,0.3099733,159.51,159.5,55.09720014]
[1730660835777,0.3099733,159.51,159.5,55.22269014]
[1730660836809,0.3099733,159.51,159.5,55.67367014]
[1730660837298,0.3099733,159.59,159.58,0.1]
[1730660837903,0.3099733,159.59,159.58,6.3664]
[1730660838403,0.3099733,159.59,159.58,40.30729014]
[1730660838600,0.3099733,159.59,159.58,16.30491614]
[1730660838780,0.3099733,159.59,159.58,0.1]
[1730660839203,0.3099733,159.59,159.58,6.3664]
[1730660839507,0.3099733,159.59,159.58,21.92675915]
[1730660839685,0.3099733,159.59,159.58,45.70364315]
[1730660840092,0.3099733,159.59,159.58,45.80364315]
[1730660840299,22.00774245,159.67,159.58,45.80364315]
[1730660840300,0.3099733,159.67,159.66,0.1]
[1730660840978,22.00774245,159.67,159.63,0.1]
[1730660841203,6.5728733,159.67,159.63,0.1]
[1730660841404,6.5728733,159.67,159.65,0.1]
[1730660841618,6.5728733,159.67,159.62,0.1]
[1730660842114,15.43486915,159.63,159.6,0.1]
[1730660842292,15.43486915,159.61,159.6,0.1]
[1730660842491,15.43486915,159.61,159.58,0.1]
[1730660842793,15.43486915,159.59,159.58,0.1]
[1730660843005,15.43486915,159.59,159.57,0.1]
[1730660843206,15.43486915,159.58,159.54,0.1]
[1730660843497,0.12549,159.6,159.54,0.1]
[1730660843498,15.43486915,159.55,159.54,0.1]
[1730660844002,15.43486915,159.59,159.56,0.1]
[1730660844183,15.43486915,159.59,159.57,0.1]
[1730660844390,15.43486915,159.59,159.58,0.1]
[1730660845306,21.70086915,159.59,159.58,0.1]
[1730660845796,21.70086915,159.59,159.57,0.1]
[1730660846109,15.43486915,159.59,159.57,0.1]
[1730660846406,15.43486915,159.59,159.58,0.1]
[1730660846894,15.43486915,159.59,159.57,0.1]
[1730660847297,15.43486915,159.59,159.58,0.1]
[1730660848313,21.70086915,159.59,159.57,0.1]
[1730660848512,6.6417,159.63,159.58,0.1]
[1730660848710,6.2648,159.62,159.58,0.1]
[1730660849012,6.2648,159.62,159.55,6.2672]
[1730660849013,6.2648,159.62,159.59,0.1]
[1730660849201,6.2648,159.62,159.6,0.1]
[1730660849715,15.43486915,159.61,159.6,0.1]
[1730660850007,6.6417,159.63,159.62,0.1]
[1730660850008,12.9062,159.63,159.62,0.1]
[1730660850615,12.9062,159.63,159.61,0.1]
[1730660850787,12.9062,159.63,159.62,0.1]
[1730660850992,28.34106915,159.63,159.62,0.1]
[1730660851398,15.43486915,159.63,159.62,0.1]
[1730660852010,15.63099235,159.66,159.65,0.1]
[1730660852311,0.1961232,159.66,159.65,0.1]
[1730660853487,0.1961232,159.66,159.65,6.3637]
[1730660855111,0.1961232,159.66,159.65,30.266074]
[1730660855308,0.1961232,159.66,159.65,45.70094315]
[1730660855706,0.1961232,159.66,159.65,46.15192315]
[1730660856295,15.80199955,159.75,159.65,46.15192315]
[1730660856296,0.3671304,159.75,159.74,0.1]
[1730660857704,15.80199955,159.75,159.74,0.1]
[1730660859104,0.3671304,159.75,159.74,0.1]
[1730660859915,0.3671304,159.75,159.74,6.3601]
[1730660860304,0.3671304,159.75,159.74,21.79496915]
[1730660860509,0.3671304,159.75,159.74,6.3601]
[1730660862194,0.3671304,159.75,159.74,0.1]
[1730660862397,0.3671304,159.75,159.73,31.08616915]
[1730660862398,37.4965687,159.75,159.71,0.1]
[1730660862704,15.43486915,159.72,159.66,0.1]
[1730660863016,20.0,159.73,159.7,0.1]
[1730660863530,15.8706,159.74,159.72,0.1]
[1730660863813,6.6268304,159.75,159.72,0.1]
[1730660864316,6.6268304,159.75,159.68,6.2624]
[1730660864317,15.43486915,159.74,159.73,0.1]
[1730660864523,0.3671304,159.75,159.74,0.1]
[1730660865526,0.3671304,159.75,159.74,24.74989642]
[1730660865845,0.3671304,159.75,159.74,31.00999642]
[1730660866509,0.3671304,159.75,159.74,6.3601]
[1730660866920,0.3671304,159.75,159.74,0.1]
[1730660868133,0.3671304,159.75,159.74,6.3601]
[1730660869524,0.3671304,159.75,159.74,0.1]
[1730660869525,25.01702682,159.75,159.74,0.1]
[1730660870107,0.3671304,159.75,159.74,0.1]
[1730660870508,25.01702682,159.75,159.74,0.1]
[1730660871237,0.3671304,159.75,159.74,0.1]
[1730660871823,25.01702682,159.75,159.74,0.1]
[1730660872230,37.43562682,159.75,159.73,0.1]
[1730660872430,24.64989642,159.74,159.73,0.1]
[1730660872815,24.64989642,159.74,159.72,0.1]
[1730660873031,24.64989642,159.74,159.71,0.1]
[1730660873212,24.64989642,159.72,159.71,0.1]
[1730660873531,30.91079642,159.72,159.68,0.1]
[1730660873739,24.64989642,159.69,159.68,0.1]
[1730660874037,24.64989642,159.69,159.66,15.6581]
[1730660874038,24.64989642,159.69,159.67,0.1]
[1730660874334,24.64989642,159.68,159.67,0.1]
[1730660876233,24.64989642,159.69,159.68,0.1]
[1730660876419,24.64989642,159.71,159.7,0.1]
[1730660877508,24.64989642,159.72,159.7,0.1]
[1730660877810,6.5260304,159.75,159.72,0.1]
[1730660877811,24.64989642,159.73,159.72,0.1]
[1730660880434,30.91039642,159.73,159.68,0.1]
[1730660880616,6.2605,159.73,159.7,0.1]
[1730660880813,24.64989642,159.71,159.7,0.1]
[1730660882226,24.64989642,159.72,159.71,0.1]
[1730660882523,24.64989642,159.73,159.71,0.1]
[1730660882724,24.64989642,159.73,159.72,0.1]
[1730660882930,24.64989642,159.74,159.73,0.1]
[1730660883730,0.3671304,159.75,159.74,0.1]
[1730660886333,0.3671304,159.75,159.74,6.3601]
[1730660886935,0.3671304,159.75,159.74,31.00999642]
[1730660887733,0.3671304,159.75,159.74,6.3601]
[1730660890627,0.3671304,159.75,159.74,31.00999642]
[1730660891038,0.3671304,159.75,159.74,55.01237042]
[1730660892437,0.3671304,159.75,159.74,6.3601]
[1730660899957,0.3671304,159.75,159.74,46.02241103]
[1730660900260,0.3671304,159.75,159.74,6.3601]
[1730660900446,0.3671304,159.75,159.74,6.4601]
[1730660900639,0.3671304,159.75,159.74,21.86905703]
[1730660901264,15.40895703,159.86,159.85,0.1]
[1730660901561,15.73434183,159.86,159.85,0.1]
[1730660902744,0.3253848,159.86,159.85,0.1]
[1730660903061,15.40895703,159.88,159.85,0.1]
[1730660903062,21.48904183,159.88,159.85,0.1]
[1730660903272,15.40895703,159.86,159.85,0.1]
[1730660903559,24.6271367,159.86,159.85,0.1]
[1730660903762,30.8825367,159.86,159.85,0.1]
[1730660906741,30.8825367,159.86,159.66,43.4871367]
[1730660906742,30.8825367,159.86,159.83,0.1]
[1730660906948,6.2554,159.86,159.83,0.1]
[1730660907156,24.6271367,159.84,159.83,0.1]
[1730660908147,24.6271367,159.85,159.84,0.1]
[1730660908569,24.6271367,159.86,159.85,0.1]
[1730660911458,30.8825367,159.86,159.85,0.1]
[1730660911766,30.8825367,159.86,159.79,6.2578]
[1730660911767,30.8825367,159.86,159.84,0.1]
[1730660911962,30.8825367,159.86,159.82,0.1]
[1730660912163,6.2554,159.86,159.84,0.1]
[1730660912365,22.1103864,159.9,159.88,0.1]
[1730660912366,0.3063864,159.9,159.88,0.1]
[1730660912951,24.6271367,159.89,159.88,0.1]
[1730660913547,0.3063864,159.9,159.88,0.1]
[1730660913749,24.6271367,159.89,159.88,0.1]
[1730660915058,30.8816367,159.89,159.88,0.1]
[1730660917959,30.8816367,159.89,159.84,0.1]
[1730660918158,6.2545,159.89,159.85,0.1]
[1730660918684,6.2545,159.89,159.84,0.1]
[1730660919176,6.2545,159.89,159.85,0.1]
[1730660919358,30.8825367,159.86,159.85,0.1]
[1730660919564,30.8825367,159.86,159.84,0.1]
[1730660919763,24.6271367,159.85,159.82,0.1]
[1730660920080,24.6271367,159.83,159.8,0.1]
[1730660920260,24.6271367,159.81,159.77,0.1]
[1730660920470,24.6271367,159.78,159.77,0.1]
[1730660921371,30.8858367,159.78,159.76,0.1]
[1730660921690,20.0,159.81,159.77,0.1]
[1730660922182,70.25098,159.8,159.73,0.1]
[1730660922386,20.0,159.79,159.75,0.1]
[1730660923079,24.6271367,159.76,159.75,0.1]
[1730660923461,24.6271367,159.76,159.7,37.64778684]
[1730660923462,30.8867367,159.76,159.73,0.1]
[1730660923788,6.2596,159.76,159.74,0.1]
[1730660925484,26.2582,159.79,159.74,0.1]
[1730660925786,24.6271367,159.75,159.74,0.1]
[1730660926278,24.6271367,159.75,159.72,0.1]
[1730660926488,24.6271367,159.73,159.72,0.1]
[1730660927478,30.8876367,159.73,159.72,0.1]
[1730660928786,24.6271367,159.73,159.72,0.1]
[1730660929278,30.8874367,159.74,159.72,0.1]
[1730660930184,24.6271367,159.73,159.72,0.1]
[1730660930996,24.6271367,159.81,159.8,0.1]
[1730660931182,24.6271367,159.82,159.81,0.1]
[1730660931384,30.8837367,159.83,159.81,0.1]
[1730660931566,24.6271367,159.82,159.79,0.1]
[1730660931888,6.2566,159.83,159.82,0.1]
[1730660932185,30.8837367,159.83,159.78,0.1]
[1730660932375,24.6271367,159.79,159.78,0.1]
[1730660933791,24.6271367,159.8,159.78,0.1]
[1730660935692,24.6271367,159.8,159.79,0.1]
[1730660937286,15.40345809,159.8,159.79,0.1]
[1730660940398,21.66125809,159.8,159.79,0.1]
[1730660941101,21.66125809,159.8,159.78,0.1]
[1730660941276,15.40345809,159.79,159.76,0.1]
[1730660941476,15.40345809,159.77,159.73,0.1]
[1730660941688,15.40345809,159.74,159.73,0.1]
[1730660943480,15.40345809,159.74,159.72,0.1]
[1730660943678,15.40345809,159.74,159.73,0.1]
[1730660946100,108.5262,159.8,159.75,0.1]
[1730660946101,15.40345809,159.77,159.75,0.1]
[1730660946405,15.40345809,159.77,159.76,0.1]
[1730660946993,15.40345809,159.77,159.73,6.2604]
[1730660946994,15.40345809,159.78,159.77,0.1]
[1730660947377,15.40345809,159.79,159.77,0.1]
[1730660947575,15.40345809,159.8,159.79,0.1]
[1730660949007,21.66125809,159.8,159.79,0.1]
[1730660955201,21.66125809,159.8,159.78,0.1]
[1730660955386,37.51965809,159.84,159.79,0.1]
[1730660955585,15.40345809,159.8,159.79,0.1]
[1730660956585,21.66125809,159.8,159.77,0.1]
[1730660956790,15.40345809,159.78,159.77,0.1]
[1730660957308,15.40345809,159.79,159.78,0.1]
[1730660958708,6.2578,159.8,159.74,15.6499]
[1730660958709,15.40345809,159.8,159.79,0.1]
[1730660959089,21.66125809,159.8,159.79,0.1]
[1730660960399,15.40345809,159.81,159.8,0.1]
[1730660960598,16.7278153,159.86,159.77,15.6473]
[1730660960599,15.40345809,159.82,159.81,0.1]
[1730660960997,15.40345809,159.86,159.84,0.1]
[1730660961297,6.2542,159.89,159.86,0.1]
[1730660961492,15.40345809,159.87,159.86,0.1]
[1730660962013,15.40345809,159.91,159.88,0.1]
[1730660962214,15.40345809,159.91,159.85,15.7919]
[1730660962215,15.40345809,159.91,159.89,0.1]
[1730660963287,15.70984449,159.9,159.89,0.1]
[1730660963812,0.3063864,159.9,159.89,6.3542]
[1730660965102,15.70984449,159.9,159.89,0.1]
[1730660967016,0.3063864,159.9,159.89,0.1]
[1730660969400,0.3063864,159.9,159.89,45.88552209]
[1730660971712,0.3063864,159.9,159.89,21.85765809]
[1730660973315,0.3063864,159.9,159.89,21.75765809]
[1730660973502,0.3063864,159.9,159.89,6.3542]
[1730660976405,15.70984449,159.9,159.88,0.1]
[1730660976735,0.3063864,159.9,159.89,0.1]
[1730660976894,0.3063864,159.9,159.88,0.1]
[1730660977220,0.3063864,159.9,159.89,0.1]
[1730660977598,21.96374449,159.9,159.89,0.1]
[1730660980909,21.96374449,159.9,159.87,0.1]
[1730660981223,15.40345809,159.88,159.87,0.1]
[1730660981717,21.65805809,159.88,159.87,0.1]
[1730660985120,0.3063864,159.9,159.89,0.1]
[1730660987023,0.3063864,159.9,159.89,6.3542]
[1730660994310,0.3063864,159.9,159.89,6.4542]
[1730660994512,0.3063864,159.9,159.89,21.85765809]
[1730660995023,0.3063864,159.9,159.89,45.73454209]
[1730660996017,0.3063864,159.9,159.89,45.86003209]
[1730660997022,0.3063864,159.9,159.89,68.49415361]
[1730660997724,0.3063864,159.98,159.97,0.1]
[1730660998029,0.3063864,159.98,159.97,15.50345809]
[1730661001427,0.3063864,159.98,159.97,0.1]
[1730661002314,0.3063864,159.98,159.97,6.3511]
[1730661003335,0.3063864,159.98,159.97,21.85455809]
[1730661003831,0.3063864,159.98,159.97,6.4511]
[1730661004018,0.3063864,159.98,159.97,21.85455809]
[1730661004831,0.3063864,159.98,159.97,6.3511]
[1730661005604,0.3063864,159.98,159.97,0.1]
[1730661005605,15.70984449,159.98,159.97,0.1]
[1730661006838,0.3063864,159.98,159.97,0.1]
[1730661008738,15.70984449,159.98,159.97,0.1]
[1730661009744,21.96054449,159.98,159.97,0.1]
[1730661011030,21.96054449,159.98,159.95,0.1]
[1730661011337,15.40345809,159.97,159.95,0.1]
[1730661011639,6.5570864,159.98,159.97,0.1]
[1730661011640,0.3063864,159.98,159.97,0.1]
[1730661012434,0.3063864,159.98,159.97,15.50345809]
[1730661012940,0.3063864,159.98,159.97,45.40774209]
[1730661013152,0.3063864,159.98,159.97,45.50774209]
[1730661013629,0.3063864,159.98,159.97,51.75884209]
[1730661014221,0.3063864,159.98,159.97,51.88433209]
[1730661014945,0.3063864,159.98,159.97,51.65884209]
[1730661015149,0.3063864,159.98,159.97,6.4511]
[1730661015515,0.3063864,159.98,159.97,21.85455809]
[1730661015719,0.3063864,159.98,159.97,21.95455809]
[1730661016737,0.3063864,159.98,159.97,21.85455809]
[1730661016947,0.3063864,160.06,160.05,0.2]
[1730661017240,0.3063864,160.06,160.05,39.60583209]
[1730661017629,0.3063864,160.06,160.05,39.50583209]
[1730661017829,0.3063864,160.06,160.05,39.60583209]
[1730661018816,0.3063864,160.06,160.05,45.85383209]
[1730661019127,0.3063864,160.14,160.05,45.85383209]